bitfinex/quotes_ETHUSD_20250526
["timestamp","ask_amount","ask_price","bid_price","bid_amount"]
[1748287093488,7.5195433,2540.2,2539.4,8.0]
[1748287093489,2.36231604,2539.9,2539.4,8.0]
[1748287093650,2.36266981,2539.5,2539.4,8.0]
[1748287096089,2.36294896,2539.2,2539.1,12.68038742]
[1748287096277,2.36294896,2539.2,2539.1,8.5]
[1748287096463,2.36294896,2539.2,2539.1,20.68038742]
[1748287096666,2.36287409,2539.3,2539.2,8.0]
[1748287096891,2.36294896,2539.2,2539.1,13.44477473]
[1748287097395,2.36294896,2539.2,2539.1,21.44477473]
[1748287097798,2.36294896,2539.2,2539.1,21.66483684]
[1748287098097,2.36294896,2539.2,2539.1,17.0955612]
[1748287098397,2.83553127,2539.2,2539.1,8.5955612]
[1748287098562,2.83553127,2539.2,2539.1,8.37549909]
[1748287099300,2.36294896,2539.2,2539.1,12.55588651]
[1748287106600,2.36294896,2539.2,2539.1,20.62788651]
[1748287111505,0.7981,2540.1,2539.3,1.3025]
[1748287111705,0.7981,2540.4,2540.1,8.0]
[1748287111999,2.36201873,2540.2,2540.1,8.0]
[1748287112201,2.36201873,2540.2,2540.1,12.18038742]
[1748287113328,2.36201873,2540.2,2540.1,12.55588651]
[1748287118106,2.36196873,2540.3,2540.1,12.55588651]
[1748287118427,2.36188186,2540.4,2540.2,4.7433]
[1748287118581,2.36188186,2540.4,2540.3,4.18038742]
[1748287118913,2.36188186,2540.4,2540.3,4.56749485]
[1748287119116,2.36188186,2540.4,2540.3,4.94299394]
[1748287119273,2.36188186,2540.4,2540.3,5.13850295]
[1748287119479,2.36188186,2540.4,2540.3,0.37549909]
[1748287119687,2.41108855,2540.4,2540.3,0.37549909]
[1748287120324,2.36188186,2540.4,2540.3,0.37549909]
[1748287120627,2.36192575,2540.3,2540.2,0.37549909]
[1748287124416,2.36192575,2540.3,2540.2,12.55588651]
[1748287126122,2.36192575,2540.3,2540.2,8.37549909]
[1748287126430,3.82378452,2540.3,2540.2,0.37549909]
[1748287127329,2.36229772,2539.9,2539.8,0.37549909]
[1748287132996,2.36208859,2540.2,2539.8,0.37549909]
[1748287132997,2.36207825,2540.2,2539.9,8.0]
[1748287133211,0.8093,2540.5,2540.1,4.18038742]
[1748287133422,2.36197017,2540.3,2540.0,8.0]
[1748287133609,2.36197017,2540.3,2540.0,8.37549909]
[1748287133812,2.36185039,2540.4,2540.0,8.37549909]
[1748287134100,2.36197979,2540.3,2540.0,8.37549909]
[1748287134528,2.36197979,2540.3,2540.2,12.18038742]
[1748287134830,2.36197979,2540.3,2540.2,16.30538742]
[1748287135761,2.36197979,2540.3,2540.2,16.68088651]
[1748287139226,2.36197979,2540.3,2540.2,0.37549909]
[1748287139227,3.11337979,2540.3,2540.2,0.37549909]
[1748287141832,3.11337979,2540.3,2540.2,4.55588651]
[1748287145050,3.11337979,2540.3,2540.2,0.37549909]
[1748287145252,4.10351327,2540.3,2540.2,0.37549909]
[1748287145555,4.05430257,2540.3,2540.2,0.37549909]
[1748287149135,2.36211172,2540.1,2540.0,0.37549909]
[1748287157882,3.21482983,2540.1,2540.0,0.37549909]
[1748287158185,4.49620696,2540.1,2540.0,0.37549909]
[1748287158547,2.36248375,2539.7,2539.6,0.37549909]
[1748287158751,3.16598375,2539.7,2539.6,0.37549909]
[1748287159746,2.36266981,2539.5,2539.4,0.37549909]
[1748287162689,2.36266981,2539.5,2539.4,0.59621176]
[1748287163278,2.36266981,2539.5,2539.4,0.37549909]
[1748287163814,2.36276285,2539.4,2539.3,4.18038742]
[1748287165015,2.36276285,2539.4,2539.3,4.55656641]
[1748287167178,2.36276285,2539.4,2539.3,4.77702947]
[1748287171490,2.36276285,2539.4,2539.3,12.77702947]
[1748287171695,2.36276285,2539.4,2539.3,20.83802947]
[1748287171894,2.36276285,2539.4,2539.3,16.90302947]
[1748287175511,2.36276285,2539.4,2539.3,12.77702947]
[1748287175713,2.83530793,2539.4,2539.3,12.77702947]
[1748287176132,2.36276285,2539.4,2539.3,12.77702947]
[1748287176508,2.36276285,2539.4,2539.3,8.59664205]
[1748287177414,2.36276285,2539.4,2539.3,12.77702947]
[1748287188265,2.36276285,2539.4,2539.3,13.2463388]
[1748287193388,2.36276285,2539.4,2539.3,12.77702947]
[1748287195626,2.36276285,2539.4,2539.3,13.2488616]
[1748287202949,2.36276285,2539.4,2539.3,12.77702947]
[1748287205133,2.36276285,2539.4,2539.3,9.06869135]
[1748287206651,2.83530793,2539.4,2539.3,9.06869135]
[1748287206955,3.60390793,2539.4,2539.3,9.06869135]
[1748287207811,3.60390793,2539.4,2539.3,8.59664205]
[1748287209309,3.60390793,2539.4,2539.3,0.59664205]
[1748287210769,2.36276285,2539.4,2539.3,0.59664205]
[1748287217983,2.34512819,2539.4,2539.3,0.59664205]
[1748287225454,2.34512819,2539.4,2539.3,0.37617899]
[1748287225884,2.34512819,2539.4,2539.3,0.59731604]
[1748287230798,2.34512819,2539.4,2539.3,1.06936534]
[1748287230954,3.64413637,2539.4,2539.3,1.06936534]
[1748287231273,3.5949098,2539.4,2539.3,1.06936534]
[1748287232256,3.5949098,2539.4,2539.3,0.59731604]
[1748287233711,2.8159098,2539.4,2539.3,0.59731604]
[1748287235388,3.5949098,2539.4,2539.3,0.59731604]
[1748287235586,3.5949098,2539.4,2539.3,0.37617899]
[1748287237418,2.36313509,2539.0,2538.9,12.18038742]
[1748287238320,2.36313509,2539.0,2538.9,12.40150733]
[1748287238618,2.36313509,2539.0,2538.9,12.77890396]
[1748287249103,2.36313509,2539.0,2538.9,8.59851654]
[1748287249300,3.61115473,2539.0,2538.9,0.59851654]
[1748287249527,3.66039882,2539.0,2538.9,0.59851654]
[1748287249942,3.66039882,2539.0,2538.9,0.22111991]
[1748287250243,3.66039882,2539.0,2538.3,0.4720493]
[1748287250244,3.13909366,2538.4,2538.3,0.4720493]
[1748287250608,3.13909366,2538.4,2538.3,0.69291927]
[1748287250804,3.13909366,2538.4,2538.3,0.22086997]
[1748287251033,3.13909366,2538.4,2538.3,0.59790168]
[1748287251242,2.36369366,2538.4,2538.3,12.7782891]
[1748287253318,3.1843979,2539.3,2538.5,0.8068]
[1748287253506,2.36357651,2538.6,2538.5,0.8068]
[1748287253703,2.36357651,2538.6,2538.5,12.18038742]
[1748287254254,2.36357651,2538.6,2538.5,12.40109269]
[1748287254819,2.36357651,2538.6,2538.5,12.7781244]
[1748287255959,2.36357651,2538.6,2538.5,13.47490146]
[1748287256143,2.36357651,2538.6,2538.5,12.7781244]
[1748287256625,2.36357651,2538.6,2538.5,16.7141244]
[1748287256830,2.36357651,2538.6,2538.5,17.4823244]
[1748287257656,2.36357651,2538.6,2538.5,17.26161913]
[1748287259057,2.36357651,2538.6,2538.5,17.73366843]
[1748287259536,2.36344231,2538.7,2538.5,9.73366843]
[1748287259733,2.36350744,2538.6,2538.5,5.55328101]
[1748287259949,2.36350744,2538.6,2538.5,9.95445002]
[1748287261725,2.36344699,2538.7,2538.6,8.0]
[1748287261927,2.36344699,2538.7,2538.6,12.18038742]
[1748287262159,2.36337105,2538.8,2538.6,12.18038742]
[1748287262365,2.36337105,2538.8,2538.7,0.98898159]
[1748287262927,2.36337105,2538.8,2538.7,1.83706094]
[1748287263581,2.36257678,2539.6,2539.2,0.7682]
[1748287263726,2.36266981,2539.5,2539.4,8.0]
[1748287264077,2.36266981,2539.5,2539.4,12.18038742]
[1748287264373,1.98550802,2539.7,2539.5,0.7682]
[1748287264681,1.98550802,2539.7,2539.6,17.10536901]
[1748287265778,2.36239155,2539.8,2539.7,8.0]
[1748287266865,2.36239155,2539.8,2539.7,8.5978133]
[1748287271359,2.36239155,2539.8,2539.7,8.37703171]
[1748287277750,2.36239155,2539.8,2539.7,8.0]
[1748287280687,2.36238796,2539.9,2539.7,8.0]
[1748287280859,2.36238796,2539.9,2539.8,12.18038742]
[1748287284596,2.36238796,2539.9,2539.8,12.55555288]
[1748287284778,2.83485072,2539.9,2539.8,8.37516546]
[1748287284952,3.59825072,2539.9,2539.8,8.37516546]
[1748287285774,3.59825072,2539.9,2539.8,0.37516546]
[1748287286275,3.59825072,2539.9,2539.5,0.38755722]
[1748287286276,2.36257678,2539.6,2539.5,0.38755722]
[1748287286608,2.36257678,2539.6,2539.4,8.0]
[1748287286609,2.36266981,2539.5,2539.4,8.0]
[1748287287785,2.36266981,2539.5,2539.4,8.37570259]
[1748287288505,2.36257678,2539.6,2539.4,8.37570259]
[1748287288666,2.36257678,2539.6,2539.5,12.94268742]
[1748287289093,2.36257678,2539.6,2539.5,13.71693403]
[1748287291116,2.36257678,2539.6,2539.5,12.95463403]
[1748287292308,2.36257678,2539.6,2539.5,12.55609001]
[1748287292709,2.36257678,2539.6,2539.5,13.02591945]
[1748287294021,2.36257678,2539.6,2539.5,12.55609001]
[1748287294189,2.36257678,2539.6,2539.5,12.94023167]
[1748287300386,2.36257678,2539.6,2539.5,13.56597744]
[1748287301293,2.36257678,2539.6,2539.5,14.37267744]
[1748287301694,0.7774,2540.1,2539.6,8.0]
[1748287301937,2.36211172,2540.1,2540.0,4.18038742]
[1748287302229,2.36199812,2540.3,2540.1,8.0]
[1748287302402,2.36201873,2540.2,2540.0,8.064]
[1748287302607,2.36201873,2540.2,2540.1,4.18038742]
[1748287302789,2.36197103,2540.3,2540.2,8.0]
[1748287303230,2.36197103,2540.3,2540.2,8.22092008]
[1748287304139,2.36197103,2540.3,2540.2,9.06794125]
[1748287304835,2.36197103,2540.3,2540.2,9.26289557]
[1748287305135,2.36197103,2540.3,2540.2,8.79157699]
[1748287306235,2.36197103,2540.3,2540.2,0.59662267]
[1748287306400,3.15817103,2540.3,2540.2,0.59662267]
[1748287308851,3.15817103,2540.3,2540.2,0.37570259]
[1748287309008,3.71017518,2540.3,2540.2,0.37570259]
[1748287310349,2.36211172,2540.1,2540.0,0.37570259]
[1748287310826,2.36211172,2540.1,2540.0,4.55609001]
[1748287311010,2.36211172,2540.1,2540.0,4.77672999]
[1748287311950,2.36211172,2540.1,2540.0,0.59634257]
[1748287312253,3.20554422,2540.1,2540.0,0.37570259]
[1748287312947,2.36220472,2540.0,2539.9,0.37570259]
[1748287313951,2.36220472,2540.0,2539.9,0.59635175]
[1748287315945,2.36220472,2540.0,2539.9,4.77673917]
[1748287318248,2.36220472,2540.0,2539.9,0.59635175]
[1748287318548,3.92328343,2540.0,2539.9,0.59635175]
[1748287319526,3.13030472,2540.0,2539.9,0.59635175]
[1748287320849,3.17952122,2540.0,2539.9,0.59635175]
[1748287321027,3.13030472,2540.0,2539.9,0.59635175]
[1748287321651,3.13030472,2540.0,2539.9,0.37570259]
[1748287322745,2.36220472,2540.0,2539.9,4.55609001]
[1748287323156,2.36220472,2540.0,2539.9,4.77680844]
[1748287323459,3.15147018,2540.0,2539.9,4.77680844]
[1748287327273,2.36220472,2540.0,2539.9,4.77680844]
[1748287327579,2.36220472,2540.0,2539.9,16.71180844]
[1748287329784,2.36217003,2540.1,2540.0,8.0]
[1748287329927,2.36211172,2540.1,2540.0,8.0]
[1748287330281,2.36211172,2540.1,2540.0,1.01831843]
[1748287330571,2.36211172,2540.1,2540.0,2.01976679]
[1748287333968,2.36211172,2540.1,2540.0,1.39402102]
[1748287335270,2.36211172,2540.1,2540.0,2.01976679]
[1748287337473,2.36211172,2540.1,2540.0,10.01976679]
[1748287338184,2.36211172,2540.1,2540.0,9.39402102]
[1748287339936,2.36211172,2540.1,2540.0,8.59642102]
[1748287341658,2.36211172,2540.1,2540.0,0.59642102]
[1748287342064,2.36211172,2540.1,2540.0,8.59642102]
[1748287344039,2.36211172,2540.1,2540.0,12.77680844]
[1748287347249,2.36211172,2540.1,2540.0,13.24747996]
[1748287351091,2.36211172,2540.1,2540.0,9.06709254]
[1748287351262,3.66442501,2540.1,2540.0,9.06709254]
[1748287351463,3.66442501,2540.1,2540.0,1.06709254]
[1748287351662,3.71363956,2540.1,2540.0,0.59642102]
[1748287352061,3.66442501,2540.1,2540.0,0.37570259]
[1748287352651,2.36220472,2540.0,2539.9,0.37570259]
[1748287352865,3.20106981,2540.0,2539.9,0.37570259]
[1748287357412,4.05298744,2540.0,2539.9,0.37570259]
[1748287357600,2.36229772,2539.9,2539.8,0.37570259]
[1748287357907,3.16499772,2539.9,2539.8,0.37570259]
[1748287358086,4.47845697,2539.9,2539.8,0.37570259]
[1748287358509,8.41245697,2539.9,2539.8,0.37570259]
[1748287359612,8.41245697,2539.9,2539.4,0.37570259]
[1748287359613,2.36257678,2539.6,2539.4,0.37570259]
[1748287360515,2.36266981,2539.5,2539.4,0.37570259]
[1748287365929,3.14796981,2539.5,2539.4,0.37570259]
[1748287366125,4.09734737,2539.5,2539.4,0.37570259]
[1748287366324,2.36322816,2538.9,2538.8,8.37570259]
[1748287366502,2.36322816,2538.9,2538.8,12.55609001]
[1748287366898,2.36322816,2538.9,2538.8,12.77640045]
[1748287376619,2.36266981,2539.5,2538.9,0.7562]
[1748287376824,2.36266981,2539.5,2539.4,4.18038742]
[1748287379557,2.36276285,2539.4,2539.2,4.18038742]
[1748287379724,2.3628559,2539.3,2539.2,12.18038742]
[1748287380053,2.3628559,2539.3,2539.2,12.40077962]
[1748287380251,2.3628559,2539.3,2539.2,8.2203922]
[1748287380568,3.07168476,2539.3,2539.2,8.2203922]
[1748287380859,2.3628559,2539.3,2539.2,8.2203922]
[1748287381065,2.3628559,2539.3,2539.2,8.59670501]
[1748287382626,2.3628559,2539.3,2539.2,12.77709243]
[1748287385973,2.3628559,2539.3,2539.2,13.56679243]
[1748287387072,2.3628559,2539.3,2539.2,14.03746395]
[1748287388077,2.3628559,2539.3,2539.2,1.06737653]
[1748287388282,2.83541778,2539.3,2539.2,1.06737653]
[1748287388847,2.3628559,2539.3,2539.2,1.06737653]
[1748287389394,2.3628559,2539.3,2539.2,5.24776395]
[1748287389891,2.3628559,2539.3,2539.2,4.77709243]
[1748287390063,2.3628559,2539.3,2539.2,12.77709243]
[1748287391594,2.3628559,2539.3,2539.2,13.57679243]
[1748287391780,2.3628559,2539.3,2539.2,14.04746395]
[1748287391979,2.3628559,2539.3,2539.2,9.06737653]
[1748287392997,2.3628559,2539.3,2539.2,8.59670501]
[1748287399318,2.3628559,2539.3,2539.2,12.77709243]
[1748287399505,2.3628559,2539.3,2539.2,13.57299243]
[1748287401830,2.3628559,2539.3,2539.2,12.77709243]
[1748287402002,2.3628559,2539.3,2539.2,8.59670501]
[1748287403800,2.3628559,2539.3,2539.2,9.06811966]
[1748287404888,2.3628559,2539.3,2539.2,1.06811966]
[1748287405309,2.3628559,2539.3,2539.2,0.59670501]
[1748287408326,2.3628559,2539.3,2539.2,1.06811966]
[1748287411428,2.3628559,2539.3,2539.2,13.24850708]
[1748287412229,2.3628559,2539.3,2539.2,13.4028382]
[1748287415636,2.3628559,2539.3,2539.2,12.77709243]
[1748287427440,2.3628559,2539.3,2539.2,13.4028382]
[1748287429338,2.80750802,2540.0,2539.3,8.0]
[1748287429511,2.36233284,2539.9,2539.8,4.18038742]
[1748287429839,2.36233284,2539.9,2539.8,4.40077962]
[1748287430149,2.36233284,2539.9,2539.8,5.24867488]
[1748287430750,2.36233284,2539.9,2539.8,13.24867488]
[1748287431812,2.36233284,2539.9,2539.8,12.77709243]
[1748287434462,2.36233284,2539.9,2539.8,8.59670501]
[1748287435264,3.16933284,2539.9,2539.8,8.59670501]
[1748287441478,3.16933284,2539.9,2539.8,12.77709243]
[1748287441683,2.36233284,2539.9,2539.8,12.77709243]
[1748287442048,2.36233284,2539.9,2539.8,13.55319243]
[1748287443564,0.8276,2540.4,2539.9,8.0]
[1748287443784,4.34729308,2540.5,2540.4,8.0]
[1748287444370,2.36178506,2540.5,2540.4,8.0]
[1748287444698,2.36178506,2540.5,2540.4,8.2203922]
[1748287444904,1.98550802,2540.6,2540.4,8.2203922]
[1748287445089,4.34723051,2540.6,2540.4,8.2203922]
[1748287445405,2.36173981,2540.5,2540.4,8.2203922]
[1748287445605,2.36173981,2540.5,2540.4,8.0]
[1748287446177,4.34719785,2540.6,2540.4,8.0]
[1748287446382,4.34719785,2540.6,2540.5,3.935]
[1748287447206,4.34719785,2540.6,2540.5,4.15523946]
[1748287447405,1.98550802,2540.6,2540.5,17.68752688]
[1748287447566,0.1,2540.9,2540.8,12.73766826]
[1748287447767,0.1,2540.9,2540.8,21.40205568]
[1748287447972,0.1,2540.9,2540.8,25.80268256]
[1748287448171,2.56549732,2541.4,2541.1,1.3519]
[1748287448402,4.92640075,2541.4,2541.3,12.18038742]
[1748287448703,4.92640075,2541.4,2541.3,12.40062688]
[1748287448876,2.56549732,2541.4,2541.3,13.75252688]
[1748287449081,2.56549732,2541.4,2541.3,17.68752078]
[1748287449276,1.98343734,2541.6,2541.5,8.8019]
[1748287449483,1.98343734,2541.6,2541.5,17.88681746]
[1748287449884,1.98343734,2541.6,2541.5,18.26223038]
[1748287451003,1.98343734,2541.6,2541.5,14.32823038]
[1748287451211,1.98343734,2541.6,2541.5,22.84362795]
[1748287452809,1.98343734,2541.6,2541.5,22.37523038]
[1748287454217,1.86753736,2541.6,2541.5,22.37523038]
[1748287454400,4.22825501,2541.6,2541.5,17.6899398]
[1748287454603,4.22825501,2541.6,2541.5,8.64065238]
[1748287454777,4.22825501,2541.6,2541.5,12.8210398]
[1748287455310,0.1,2541.9,2541.6,0.7525]
[1748287455511,2.36023454,2542.2,2541.9,8.0]
[1748287455712,2.36023454,2542.2,2542.1,12.18038742]
[1748287456612,2.36032778,2542.1,2541.9,4.18038742]
[1748287456916,2.36023454,2542.2,2542.1,8.043]
[1748287457090,2.36023454,2542.2,2542.1,16.043]
[1748287458193,2.36023454,2542.2,2542.1,16.4396382]
[1748287458715,2.36023454,2542.2,2542.1,12.111]
[1748287460511,2.36023454,2542.2,2542.1,16.043]
[1748287461115,2.36023454,2542.2,2542.1,8.0]
[1748287461307,2.83226601,2542.2,2542.1,8.0]
[1748287461685,0.7562,2542.8,2542.2,8.0]
[1748287461920,2.3600411,2542.4,2542.3,16.11238742]
[1748287462284,2.35993249,2542.5,2542.4,8.0]
[1748287462488,2.35997482,2542.4,2542.3,8.11238742]
[1748287464295,2.36025333,2542.1,2542.0,0.40149069]
[1748287464617,2.36025333,2542.1,2541.8,4.111]
[1748287464618,2.36043904,2541.9,2541.8,4.111]
[1748287464798,2.36043904,2541.9,2541.8,20.22338742]
[1748287465186,2.36043904,2541.9,2541.8,8.042]
[1748287465387,2.36043904,2541.9,2541.8,16.042]
[1748287465588,2.3605319,2541.8,2541.7,4.18038742]
[1748287465784,2.36071765,2541.6,2541.5,4.18038742]
[1748287466008,2.36071765,2541.6,2541.5,12.22138742]
[1748287466207,2.36071765,2541.6,2541.5,8.29038742]
[1748287466520,1.23438631,2542.4,2541.7,0.7538]
[1748287466728,1.23438631,2542.4,2542.1,4.18038742]
[1748287466729,2.36006765,2542.3,2542.1,4.18038742]
[1748287467585,2.36016049,2542.2,2542.1,4.18038742]
[1748287468502,2.36025333,2542.1,2541.9,12.18038742]
[1748287468825,2.36034618,2542.0,2541.9,12.18038742]
[1748287469725,2.36034618,2542.0,2541.9,12.87716448]
[1748287469905,2.36034618,2542.0,2541.9,12.18038742]
[1748287470403,2.36034618,2542.0,2541.9,12.55341091]
[1748287471234,2.36034618,2542.0,2541.9,8.37302349]
[1748287471435,2.36034618,2542.0,2541.9,12.55341091]
[1748287471893,2.36034618,2542.0,2541.9,12.18038742]
[1748287473338,2.36034618,2542.0,2541.9,12.39970047]
[1748287473646,2.36034618,2542.0,2541.9,8.21931305]
[1748287473647,3.11314618,2542.0,2541.9,8.21931305]
[1748287474211,3.11314618,2542.0,2541.9,8.59378371]
[1748287474430,3.11314618,2542.0,2541.9,8.37447066]
[1748287475425,3.11314618,2542.0,2541.9,0.37447066]
[1748287476848,3.11314618,2542.0,2541.9,0.59440258]
[1748287477715,3.11314618,2542.0,2541.9,1.06280015]
[1748287479235,3.11314618,2542.0,2541.9,0.59440258]
[1748287484023,2.36034618,2542.0,2541.9,12.77479]
[1748287485346,2.36034618,2542.0,2541.9,16.70579]
[1748287485845,2.36034618,2542.0,2541.9,17.17418757]
[1748287488465,2.36034618,2542.0,2541.9,17.17454445]
[1748287488623,2.36025333,2542.1,2542.0,8.0]
[1748287488957,2.36025333,2542.1,2542.0,1.0418888]
[1748287489163,2.36025333,2542.1,2542.0,9.0418888]
[1748287489664,2.36025333,2542.1,2542.0,10.04210523]
[1748287490881,2.36025333,2542.1,2542.0,1.41635946]
[1748287491045,2.36025333,2542.1,2542.0,9.41635946]
[1748287494833,2.36025333,2542.1,2542.0,16.63475946]
[1748287495047,2.36025333,2542.1,2542.0,8.59475946]
[1748287495273,2.36025333,2542.1,2542.0,16.63475946]
[1748287495665,2.36025333,2542.1,2542.0,17.26101834]
[1748287499788,2.36025333,2542.1,2542.0,9.22101834]
[1748287500078,2.36025333,2542.1,2542.0,17.26101834]
[1748287503389,11.98,2543.7,2542.0,18.02431834]
[1748287503390,0.781,2542.8,2542.0,18.02431834]
[1748287503691,2.35978919,2542.6,2542.5,12.18038742]
[1748287503873,2.35978919,2542.6,2542.5,12.40067622]
[1748287504388,2.35978919,2542.6,2542.5,8.2202888]
[1748287504792,2.35978919,2542.6,2542.5,8.59475946]
[1748287505592,2.35978919,2542.6,2542.5,8.5944828]
[1748287512597,3.74880201,2542.6,2542.5,0.5944828]
[1748287512986,3.69963775,2542.6,2542.5,0.5944828]
[1748287513527,4.06731116,2542.6,2542.5,0.37447066]
[1748287513679,2.35997482,2542.4,2542.0,0.46936172]
[1748287514197,2.36016049,2542.2,2542.1,0.2203953]
[1748287514824,2.36016049,2542.2,2542.1,12.40078272]
[1748287515025,2.36006765,2542.3,2542.1,12.40078272]
[1748287515026,2.36014236,2542.3,2542.1,13.22898272]
[1748287515324,2.36014236,2542.3,2542.2,11.931]
[1748287515938,2.36014236,2542.3,2542.2,12.1513953]
[1748287516699,2.36014236,2542.3,2542.2,12.5274744]
[1748287518626,2.45951795,2542.9,2542.3,0.7583]
[1748287518829,2.3598968,2542.5,2542.4,12.108]
[1748287519122,2.3598968,2542.5,2542.4,16.88486182]
[1748287520702,2.3598968,2542.5,2542.4,17.51151704]
[1748287529555,2.3598968,2542.5,2542.4,13.33112962]
[1748287529743,2.3598968,2542.5,2542.4,17.51151704]
[1748287530844,2.3598968,2542.5,2542.4,16.88486182]
[1748287532463,2.3598968,2542.5,2542.4,17.51151704]
[1748287535659,2.3598968,2542.5,2542.4,21.44151704]
[1748287538768,2.3598968,2542.5,2542.4,17.51151704]
[1748287538968,2.3598968,2542.5,2542.4,16.88486182]
[1748287539527,3.1826968,2542.5,2542.4,16.88486182]
[1748287540248,3.73694603,2542.5,2542.4,8.5964744]
[1748287540467,3.73694603,2542.5,2542.4,0.5964744]
[1748287542769,4.10467108,2542.5,2542.4,0.5964744]
[1748287543637,4.10467108,2542.5,2542.4,0.3760791]
[1748287544544,8.03467108,2542.5,2542.4,0.3760791]
[1748287544875,2.36016049,2542.2,2542.1,0.3760791]
[1748287545048,3.18146049,2542.2,2542.1,0.3760791]
[1748287545366,3.18146049,2542.2,2542.1,0.59655027]
[1748287546968,3.73561524,2542.2,2542.1,0.59655027]
[1748287548683,3.73561524,2542.2,2542.1,0.3760791]
[1748287550084,3.73561524,2542.2,2542.1,0.59627484]
[1748287550662,3.73561524,2542.2,2542.1,0.3760791]
[1748287551485,3.18146049,2542.2,2542.1,0.3760791]
[1748287555509,2.36034618,2542.0,2541.9,0.3760791]
[1748287565819,2.36034618,2542.0,2541.9,0.59640552]
[1748287572131,2.7283812,2542.0,2541.9,0.59640552]
[1748287581039,2.7283812,2542.0,2541.9,8.59640552]
[1748287581238,2.7283812,2542.0,2541.9,9.38880552]
[1748287581543,2.7283812,2542.0,2541.9,17.42680552]
[1748287581901,2.36034618,2542.0,2541.9,17.42680552]
[1748287582722,2.36034618,2542.0,2541.9,18.05346074]
[1748287584442,2.36034618,2542.0,2541.9,17.42680552]
[1748287585539,2.36034618,2542.0,2541.9,16.63440552]
[1748287586954,2.36034618,2542.0,2541.9,8.59640552]
[1748287587557,2.36034618,2542.0,2541.9,9.38880552]
[1748287592064,2.36034618,2542.0,2541.9,12.42475345]
[1748287592963,2.36034618,2542.0,2541.9,12.20442703]
[1748287596685,2.36034618,2542.0,2541.9,0.3760791]
[1748287596893,2.4095191,2542.0,2541.9,0.3760791]
[1748287597189,3.12484618,2542.0,2541.9,0.3760791]
[1748287597554,3.49271818,2542.0,2541.9,0.3760791]
[1748287610652,3.12484618,2542.0,2541.9,0.3760791]
[1748287613963,2.36034618,2542.0,2541.9,0.3760791]
[1748287614751,3.70250826,2542.0,2541.9,0.3760791]
[1748287614969,4.07033207,2542.0,2541.9,0.3760791]
[1748287623639,3.27933207,2542.0,2541.9,0.3760791]
[1748287623920,2.72816999,2542.0,2541.9,0.3760791]
[1748287624717,2.72816999,2542.0,2541.9,1.2011791]
[1748287626324,2.36034618,2542.0,2541.9,1.2011791]
[1748287626723,2.36034618,2542.0,2541.9,9.2011791]
[1748287628004,2.36034618,2542.0,2541.9,17.4792868]
[1748287628729,2.36034618,2542.0,2541.9,18.10594202]
[1748287630196,2.36034618,2542.0,2541.9,17.4792868]
[1748287631735,2.36034618,2542.0,2541.9,13.3752868]
[1748287631899,2.36034618,2542.0,2541.9,0.3760791]
[1748287632237,2.83240826,2542.0,2541.9,0.3760791]
[1748287632415,3.20041786,2542.0,2541.9,0.3760791]
[1748287634199,4.01051786,2542.0,2541.9,0.3760791]
[1748287644343,7.94251786,2542.0,2541.9,0.3760791]
[1748287646947,4.01051786,2542.0,2541.9,0.3760791]
[1748287647244,7.94251786,2542.0,2541.9,0.3760791]
[1748287647643,4.01051786,2542.0,2541.9,0.3760791]
[1748287647851,7.94251786,2542.0,2541.9,0.3760791]
[1748287649020,2.36071765,2541.6,2541.4,0.47103286]
[1748287649218,2.36081054,2541.5,2541.4,0.47103286]
[1748287649956,2.36081054,2541.5,2541.4,3.5087563]
[1748287650451,2.36081054,2541.5,2541.4,3.41443005]
[1748287651953,2.36081054,2541.5,2541.4,4.5534371]
[1748287653031,2.83296336,2541.5,2541.4,0.37670661]
[1748287653438,3.20059616,2541.5,2541.4,0.37670661]
[1748287655283,2.83296336,2541.5,2541.4,0.37670661]
[1748287656871,3.20037765,2541.5,2541.4,0.37670661]
[1748287657862,2.36099634,2541.3,2541.2,4.17673049]
[1748287658882,2.36099634,2541.3,2541.2,4.55315225]
[1748287659235,2.36099634,2541.3,2541.2,13.38615225]
[1748287660330,2.36099634,2541.3,2541.2,14.08615225]
[1748287666503,2.36099634,2541.3,2541.2,13.25315225]
[1748287667107,2.36099634,2541.3,2541.2,1.54730624]
[1748287668001,2.36099634,2541.3,2541.2,5.72403673]
[1748287668485,2.36099634,2541.3,2541.2,5.25315225]
[1748287669805,2.36099634,2541.3,2541.2,5.72403673]
[1748287670510,2.36099634,2541.3,2541.2,5.02403673]
[1748287671216,2.36099634,2541.3,2541.2,13.79033673]
[1748287672876,2.36099634,2541.3,2541.2,13.31945225]
[1748287679586,2.36099634,2541.3,2541.2,13.94610747]
[1748287682905,2.36099634,2541.3,2541.2,14.64610747]
[1748287686640,2.36099634,2541.3,2541.2,13.87980747]
[1748287687295,2.36099634,2541.3,2541.2,13.17980747]
[1748287687493,2.36099634,2541.3,2541.2,1.00307698]
[1748287687692,4.07148565,2541.3,2541.2,1.00307698]
[1748287687886,8.00348565,2541.3,2541.2,1.00307698]
[1748287688929,8.37181339,2541.3,2541.2,1.00307698]
[1748287692100,2.72932408,2541.3,2541.2,5.17980747]
[1748287692597,2.36099634,2541.3,2541.2,5.17980747]
[1748287694134,2.36099634,2541.3,2541.2,13.17980747]
[1748287695635,2.36099634,2541.3,2541.2,5.17980747]
[1748287695800,3.2263869,2541.3,2541.2,5.17980747]
[1748287702244,3.2263869,2541.3,2541.2,4.17673049]
[1748287703836,2.36099634,2541.3,2541.2,4.17673049]
[1748287706875,2.36118216,2541.1,2541.0,12.17673049]
[1748287708670,2.36118216,2541.1,2541.0,13.0247881]
[1748287715504,2.36118216,2541.1,2541.0,12.55364498]
[1748287719388,2.36118216,2541.1,2541.0,4.55364498]
[1748287720489,2.36118216,2541.1,2541.0,5.02530731]
[1748287723269,3.30804312,2541.1,2541.0,5.02530731]
[1748287723590,3.30804312,2541.1,2541.0,4.55364498]
[1748287724859,3.67635527,2541.1,2541.0,4.55364498]
[1748287727398,7.60935527,2541.1,2541.0,4.55364498]
[1748287730064,7.60935527,2541.1,2541.0,3.41546177]
[1748287731401,3.67635527,2541.1,2541.0,3.41546177]
[1748287740320,2.72949431,2541.1,2541.0,3.41546177]
[1748287746514,2.77868927,2541.1,2541.0,0.37691449]
[1748287746679,2.72949431,2541.1,2541.0,0.37691449]
[1748287746885,3.52049431,2541.1,2541.0,0.37691449]
[1748287747103,4.50195648,2541.1,2541.0,0.37691449]
[1748287747913,2.36157385,2540.7,2540.5,4.65116059]
[1748287748218,2.36164685,2540.6,2540.5,12.65116059]
[1748287748387,2.36164685,2540.6,2540.5,4.65116059]
[1748287749035,2.36164685,2540.6,2540.5,4.55670585]
[1748287749183,2.36164685,2540.6,2540.5,0.37720759]
[1748287749389,3.54410502,2540.6,2540.5,0.37720759]
[1748287749697,2.36164685,2540.6,2540.5,4.55670585]
[1748287752802,2.36164685,2540.6,2540.5,0.37720759]
[1748287754392,2.36164685,2540.6,2540.5,4.55670585]
[1748287755928,3.17084685,2540.6,2540.5,0.37720759]
[1748287756226,4.35353502,2540.6,2540.5,0.37720759]